Workbook

Sheet PRINCIPAL
C2: ANÁLISE DE SUSTENTABILIDADE
F3: Método Lume - Análise Qualitativa
A4: 2023-09-06
A5: USE O MENU ABAIXO PARA NAVEGAR NO SISTEMA
C6: DATA DA ENTREVISTA | F6: 2022-04-30 | I6: RESPONSÁVEL PELA ENTREVISTA | L6: Marcio
A9: COMPOSIÇÃO DO NSGA | C9: NSGA | E9: Família 1
A11: ACESSO A TERRA
C12: INFORMAÇÕES DO NSGA
A13: LINHA DO TEMPO | C13: UF | D13: PB | F13: MUNICÍPIO | H13: Solânea | L13: DISTRITO
A15: SUBSISTEMAS
C16: COMUNIDADE | E16: Gameleira | I16: NOME DA PROPRIEDADE | L16: Gameleira
A17: DIVISÃO SOCIAL DO TRABALHO
A19: ANÁLISE QUALITATIVA | C19: COORDENADAS DO ESTABELECIMENTO
C20: DISTÂNCIA A SEDE DO MUNICIPIO | E20: 12km | G20: LATITUDE | H20: 54545 | J20: LONGITUDE | K20: -45454 | M20: ALTITUDE | N20: 456

Sheet aux_admin (hidden)
A1: senha | B1: Lume@2023

Sheet 1 COMPOSIÇÃO DO NSGA
A1: COMPOSIÇÃO DO NSGA
A8: NSGA: | B8: =PRINCIPAL!E9 -> Família 1 | F8: PROPRIEDADE: | G8: =PRINCIPAL!L16 -> Gameleira
A10: MUNICÍPIO: | B10: =PRINCIPAL!H13 -> Solânea | C10: UF: | D10: =PRINCIPAL!D13 -> PB | E10: DISTRITO: | F10: =IF(PRINCIPAL!N13="","",PRINCIPAL!N13) ->  | G10: COMUNIDADE: | H10: =PRINCIPAL!E16 -> Gameleira
A12: COMPOSIÇÃO DO NSGA (NÚCLEO SOCIAL DE GESTÃO DO AGROECOSSISTEMA)
A13: N | B13: Nome | C13: Parentesco | D13: Sexo | E13: Data de Nascimento | F13: Reside no Agroecossistema | G13: Tempo Dedicado ao Agroecossistema | H13: Ocupação fora do Agroecossistema
A14: 1 | B14: Vera Lucena Santos | C14: Esposo (a) | D14: F | E14: 1987-05-01 | F14: SIM | G14: Integral
A15: 2 | B15: Luis Lucena | C15: Esposo (a) | D15: M | E15: =E14-400 -> 1986-03-27 | F15: SIM | G15: Integral
A16: 3 | B16: Leila Lucena | C16: Filho(a) | D16: F | E16: 2023-01-01 | F16: SIM | G16: Pessoa com limitação para trabalhar
A17: 4 | B17: Lara Lucena | C17: Filho(a) | D17: F | E17: =E15 -> 1986-03-27 | F17: SIM | G17: Parcial | H17: Estudante
A18: 5 | B18: Lidio Lucena | C18: Filho(a) | D18: M | E18: =E17 -> 1986-03-27 | F18: SIM | G18: Parcial | H18: Estudante
A19: nsga

Sheet 2 ACESSO A TERRA
A1: ACESSO À TERRA
A8: NSGA: | B8: =PRINCIPAL!E9 -> Família 1 | F8: PROPRIEDADE: | G8: =PRINCIPAL!L16 -> Gameleira
A10: MUNICÍPIO: | B10: =PRINCIPAL!H13 -> Solânea | C10: UF: | D10: =PRINCIPAL!D13 -> PB | E10: DISTRITO: | F10: =IF(PRINCIPAL!N13="","",PRINCIPAL!N13) ->  | G10: COMUNIDADE: | H10: =PRINCIPAL!E16 -> Gameleira
A12: ACESSO À TERRA E OUTROS ESPAÇOS NATURAIS
A13: ÁREA | B13: DENOMINAÇÃO DA TERRA | D13: FORMA DE ACESSO A TERRA | F13: MUNICÍPIO | G13: DISTÂNCIA DA ÀREA AO LOCAL DE MORADIA (km) | H13: DIMENSÃO DA ÁREA (hectares)
A14: 1 | B14: Sitio Lagoa Seca | D14: Própria | F14: Pocinhos | G14: 0 | H14: 21
A15: 2 | B15: Sítio Beneficio | D15: Própria | F15: Pocinhos | G15: 1.5 | H15: 11
A16: 3
A17: acesso
A18: TOTAL | H18: =SUM(H14:H17) -> 32

Sheet 1 FICHA DE REGISTRO (hidden)
A1: FICHA DE REGISTRO DE INFORMAÇÕES DE CAMPO
L2: DATA DA ENTREVISTA | N2: 22 DE OUTUBRO DE 2022
L3: TÉCNICO RESPONSÁVEL | N3: Giovana opes e Adriana Vieira
A8: NSGA | E8: Família Leal
A10: UF | B10: MS | C10: MUNICIPIO: | D10: APODI | F10: DISTRITO: | G10: ALGODAO | H10: COMUNIDADE: | I10: SITIO MELANCIAS | K10: DISTÂNCIA À SEDE DO MUNICIPIO | L10: 12 KM | M10: COORDENADAS DO ESTABELECIMENTO | N10: LATITUDE | O10: 5741677 | P10: ALTITUDE METROS | Q10: 720 MTS
C11: DISTRITO: | F11: NOME DA PROPRIEDADE: | H11: MARIA OSANA GURGEL DE OLIVEIRA | N11: LONGITUDE | O11: -37843585
K16: ACESSO Á TERRA E OUTROS ESPAÇOS NATURAIS
A17: N | B17: Nome | D17: Parentesco | E17: Sexo | F17: Data de Nascimento | G17: Reside no Agroecossistema | H17: Tempo Dedicado ao Acroecossistema | I17: Ocupação fora do Agroecossistema | K17: ÀREA | L17: DENOMINAÇÃO DA ÁREA | M17: FORMA DE ACESSO À TERRA | N17: MUNICIPIO | O17: DISTÂNCIA DA ÀREA AO LOCAL DE MORADIA (KM) | Q17: DIMENSÃO em (há)
A18: 1 | B18: Maria Osana Gurgel de Oliveira | D18: Esposo (a) | E18: M | F18: 1987-11-21 | G18: SIM | H18: Parcial | K18: 1 | M18: Arrendamento | N18: APODI | O18: 0,0 km | Q18: 30
A19: 2 | B19: Laerte de Oliveira Costa | D19: Esposo (a) | E19: F | G19: NÃO | H19: Não Trabalha | K19: 2 | L19: Pasto | M19: Comodato | N19: Apodi | O19: 6 km | Q19: 0.6
A20: 3 | B20: Braz Antonio de Oliveira Costa | D20: Avô (ó) | E20: M | G20: SIM | H20: Parcial
A21: 4 | B21: Mateus leal | D21: Filho(a) | E21: F | G21: NÃO | H21: Integral
A22: 5 | B22: Marcos sales | D22: Mãe | E22: M | G22: SIM | H22: Pessoa com limitação para trabalhar
A23: 6 | B23: José gomes | D23: Pai | E23: F | G23: NÃO | H23: Parcial | I23: Estudante
A24: 7 | B24: Amanda vieira | D24: Mãe | E24: M | G24: SIM | H24: Parcial
A25: 8 | B25: Berenice leal | D25: Pai | E25: F | G25: NÃO | H25: Não Trabalha | K25: TOTAL DA ÁREA | Q25: =SUM(Q18:Q24) -> 30.6

Sheet DADOS (hidden)
H2: SEXO | K2: Parentesco
C3: ESTADOS E CAPITAIS | H3: M | I3: MASCULINO | K3: Esposo (a) | N3: SIGAS UF | Q3: tempo dedicado ao agroecossistema
C4: Sigla | D4: Capital | E4: Gentílico | H4: F | I4: FEMININO | K4: Filho(a) | Q4: Integral
C5: Acre | D5: AC | E5: Rio Branco | F5: acriano | K5: Primo(a) | Q5: Parcial
C6: Alagoas | D6: AL | E6: Maceió | F6: alagoano | K6: Mãe | N6: AC | Q6: Não Trabalha
C7: Amapá | D7: AP | E7: Macapá | F7: amapaense | K7: Pai | N7: AL | Q7: Pessoa com limitação para trabalhar
C8: Amazonas | D8: AM | E8: Manaus | F8: Amazonense | K8: Avô (ó) | N8: AP
C9: Bahia | D9: BA | E9: Salvador | F9: baiano | K9: Tio(a) | N9: AM
C10: Ceará | D10: CE | E10: Fortaleza | F10: cearense | K10: Agregado | N10: BA
C11: Distrito Federal | D11: DF | E11: Brasília | F11: brasiliense | K11: Outros | N11: CE
C12: Espírito Santo | D12: ES | E12: Vitória | F12: capixaba ou espírito-santense | N12: DF
C13: Goiás | D13: GO | E13: Goiânia | F13: goiano | N13: ES | Q13: reside no agroecossistema
C14: Maranhão | D14: MA | E14: São Luís | F14: maranhense | N14: GO | Q14: SIM
C15: Mato Grosso | D15: MT | E15: Cuiabá | F15: mato-grossense | N15: MA | Q15: NÃO
C16: Mato Grosso do Sul | D16: MS | E16: Campo Grande | F16: sul-mato-grossense ou mato-grossense-do-sul | N16: MT
C17: Minas Gerais | D17: MG | E17: Belo Horizonte | F17: mineiro | I17: Forma de acesso a terra | N17: MS
C18: Paraná | D18: PR | E18: Curitiba | F18: paranaense | I18: Própria | N18: MG
C19: Paraíba | D19: PB | E19: João Pessoa | F19: paraibano | I19: Posse | N19: PR
C20: Pará | D20: PA | E20: Belém | F20: paraense | I20: Arrendamento | N20: PB
C21: Pernambuco | D21: PE | E21: Recife | F21: pernambucano | I21: Meação | N21: PA
C22: Piauí | D22: PI | E22: Teresina | F22: piauiense | I22: Parceria | N22: PE
C23: Rio Grande do Norte | D23: RN | E23: Natal | F23: potiguar, norte-rio-grandense, rio-grandense-do-norte | I23: Cessão | N23: PI
C24: Rio Grande do Sul | D24: RS | E24: Porto Alegre | F24: gaúcho ou sul-rio-grandense | I24: Comodato | N24: RN
C25: Rio de Janeiro | D25: RJ | E25: Rio de Janeiro | F25: fluminense | I25: Direito de uso | N25: RS
C26: Rondônia | D26: RO | E26: Porto Velho | F26: rondoniense ou rondoniano | I26: Uso comunitário | N26: RJ
C27: Roraima | D27: RR | E27: Boa Vista | F27: roraimense | I27: Outros | N27: RO
C28: Santa Catarina | D28: SC | E28: Florianópolis | F28: catarinense ou barriga-verde | N28: RR
C29: Sergipe | D29: SE | E29: Aracaju | F29: sergipano ou sergipense | N29: SC
C30: São Paulo | D30: SP | E30: São Paulo | F30: paulista | N30: SE
C31: Tocantins | D31: TO | N31: SP
N32: TO

Sheet 3 LINHA DO TEMPO
A1: 15 | C1: LINHA DO TEMPO DO AGROECOSSISTEMA
O2: fim_colunas
C6: NSGA: | D6: =PRINCIPAL!E9 -> Família 1 | F6: Municipio: | G6: ='1 COMPOSIÇÃO DO NSGA'!B10 -> Solânea | H6: Distrito | I6: ='1 COMPOSIÇÃO DO NSGA'!F10 ->  | J6: NOME DA PROPRIEDADE: | K6: =PRINCIPAL!L16 -> Gameleira | M6: DISTÂNCIA À SEDE DO MUNICÍPIO | N6: =PRINCIPAL!E20 -> 12km
A8: AGROECOSSISTEMA | B8: Outros
B9: Capital fundiário e equipamentos
B10: Produção animal
B11: Produção vegetal
B12: Sistema peridoméstico
B13: Ciclo de vida da família
A14: ANO
A15: CONTEXTO EXTERNO | B15: Participação na gestão de bens comuns
B16: Acesso a conhecimento
B17: Integração a espaços político-organizativos
B18: Acesso aos mercados
B19: Acesso a políticas públicas
B20: Outros

Sheet 4 SUBSISTEMAS
A1: SUBSISTEMAS
A8: NSGA: | B8: =PRINCIPAL!E9 -> Família 1 | C8: PROPRIEDADE: | E8: =PRINCIPAL!L16 -> Gameleira | G8: DATA ENTREVISTA: | H8: =PRINCIPAL!F6 -> 2022-04-30
A10: MUNICÍPIO: | B10: =PRINCIPAL!H13 -> Solânea | C10: UF: | D10: =PRINCIPAL!D13 -> PB | E10: DISTRITO: | F10: =PRINCIPAL!N13 -> 0 | G10: COMUNIDADE: | H10: =PRINCIPAL!E16 -> Gameleira
A12: SUBSISTEMAS PRODUTIVOS
A13: SUBSISTEMA | D13: DESCRIÇÃO (área ocupada, número de animais, principais produções etc).
A18: subsistema

Sheet 5 DIVISÃO SOCIAL DO TRABALHO
A1: DIVISÃO DO TRABALHO
C5: Tempo dedicado | J5: Tomada de decisão
A6: NSGA: | B6: =PRINCIPAL!E9 -> Família 1 | C6: Vera Lucena Santos | D6: Luis Lucena | E6: Lara Lucena | F6: Lidio Lucena | G6: Maria Macena | H6: referência | J6: Vera Lucena Santos | K6: Luis Lucena | L6: Lara Lucena | M6: Lidio Lucena | N6: Maria Macena | O6: referência
A7: subsistema_inicio | C7: Esposo (a) | D7: Esposo (a) | E7: Filho(a) | F7: Filho(a) | G7: Filho(a) | J7: Esposo (a) | K7: Esposo (a) | L7: Filho(a) | M7: Filho(a) | N7: Filho(a)
A8: Trabalho mercantil e autoconsumo | B8: =IF('4 SUBSISTEMAS'!A14=0," ",'4 SUBSISTEMAS'!A14) ->  | C8: 3 | D8: 2 | E8: 1 | K8: 0 | L8: 1
B9: =IF('4 SUBSISTEMAS'!A15=0," ",'4 SUBSISTEMAS'!A15) ->  | C9: 3 | D9: 2 | E9: 1 | K9: 0 | L9: 1
B10: =IF('4 SUBSISTEMAS'!A16=0," ",'4 SUBSISTEMAS'!A16) ->  | C10: 3 | D10: 2 | E10: 1 | K10: 0 | L10: 1
B11: =IF('4 SUBSISTEMAS'!A17=0," ",'4 SUBSISTEMAS'!A17) ->  | C11: 3 | D11: 2 | E11: 1 | K11: 0
B12: Comercialização | C12: 3 | D12: 2 | E12: 3
A13: subsistema
A14: trab_dom_inicio
A15: Trabalho doméstico e cuidados | B15: Cuidar das crianças
B16: Cuidar dos idosos
B17: Fazer comida
B18: Limpar a casa
B19: Lavar roupas | D19: 1 | E19: 2 | K19: 1 | L19: 1
A20: trab_dom
A21: part_social_inicio
A22: Participação social | B22: Assembleia | K22: 1
B23: outros
A25: part_social
A26: pluriatividade_inicio
A27: Pluriatividade | B27: Pedreiro | C27: 0 | D27: 0 | F27: 1
B28: Agente de Saúde | C28: 3 | D28: 1 | J28: 2 | K28: 0 | M28: 1
A30: pluriatividade
A31: TOTAL | C31: =SUM(C8:C30) -> 18 | D31: 12 | E31: 9 | F31: 1 | G31: 0 | H31: 0 | J31: =SUM(J8:J30) -> 2 | K31: 2 | L31: 4 | M31: 1 | N31: 0 | O31: 0

Sheet DIVISAO (hidden)
A1: AGRICULTURA FAMILIAR E AGROECOOGIA
D6: Tempo dedicado | M6: Tomada de decisão
A7: NSGA: | B7: ='1 FICHA DE REGISTRO'!E8 -> Família Leal
D8: =IFERROR(LEFT('1 COMPOSIÇÃO DO NSGA'!#REF!,SEARCH(" ",'1 COMPOSIÇÃO DO NSGA'!#REF!,1)-1)," ") ->  | E8: =IFERROR(LEFT('1 COMPOSIÇÃO DO NSGA'!#REF!,SEARCH(" ",'1 COMPOSIÇÃO DO NSGA'!#REF!,1)-1)," ") ->  | F8: =IFERROR(LEFT('1 COMPOSIÇÃO DO NSGA'!#REF!,SEARCH(" ",'1 COMPOSIÇÃO DO NSGA'!#REF!,1)-1)," ") ->  | G8: =IFERROR(LEFT('1 COMPOSIÇÃO DO NSGA'!#REF!,SEARCH(" ",'1 COMPOSIÇÃO DO NSGA'!#REF!,1)-1)," ") ->  | H8: =IFERROR(LEFT('1 COMPOSIÇÃO DO NSGA'!#REF!,SEARCH(" ",'1 COMPOSIÇÃO DO NSGA'!#REF!,1)-1)," ") ->  | I8: =IFERROR(LEFT('1 COMPOSIÇÃO DO NSGA'!#REF!,SEARCH(" ",'1 COMPOSIÇÃO DO NSGA'!#REF!,1)-1)," ") ->  | J8: =IFERROR(LEFT('1 COMPOSIÇÃO DO NSGA'!#REF!,SEARCH(" ",'1 COMPOSIÇÃO DO NSGA'!#REF!,1)-1)," ") ->  | K8: =IFERROR(LEFT('1 COMPOSIÇÃO DO NSGA'!#REF!,SEARCH(" ",'1 COMPOSIÇÃO DO NSGA'!#REF!,1)-1)," ") ->  | M8: =IFERROR(LEFT('1 COMPOSIÇÃO DO NSGA'!#REF!,SEARCH(" ",'1 COMPOSIÇÃO DO NSGA'!#REF!,1)-1)," ") ->  | N8: =IFERROR(LEFT('1 COMPOSIÇÃO DO NSGA'!#REF!,SEARCH(" ",'1 COMPOSIÇÃO DO NSGA'!#REF!,1)-1)," ") ->  | O8: =IFERROR(LEFT('1 COMPOSIÇÃO DO NSGA'!#REF!,SEARCH(" ",'1 COMPOSIÇÃO DO NSGA'!#REF!,1)-1)," ") ->  | P8: =IFERROR(LEFT('1 COMPOSIÇÃO DO NSGA'!#REF!,SEARCH(" ",'1 COMPOSIÇÃO DO NSGA'!#REF!,1)-1)," ") ->  | Q8: =IFERROR(LEFT('1 COMPOSIÇÃO DO NSGA'!#REF!,SEARCH(" ",'1 COMPOSIÇÃO DO NSGA'!#REF!,1)-1)," ") ->  | R8: =IFERROR(LEFT('1 COMPOSIÇÃO DO NSGA'!#REF!,SEARCH(" ",'1 COMPOSIÇÃO DO NSGA'!#REF!,1)-1)," ") ->  | S8: =IFERROR(LEFT('1 COMPOSIÇÃO DO NSGA'!#REF!,SEARCH(" ",'1 COMPOSIÇÃO DO NSGA'!#REF!,1)-1)," ") ->  | T8: =IFERROR(LEFT('1 COMPOSIÇÃO DO NSGA'!#REF!,SEARCH(" ",'1 COMPOSIÇÃO DO NSGA'!#REF!,1)-1)," ") -> 
D9: =IF('1 COMPOSIÇÃO DO NSGA'!C14=0," ",'1 COMPOSIÇÃO DO NSGA'!C14) -> Esposo (a) | E9: =IF('1 COMPOSIÇÃO DO NSGA'!C15=0," ",'1 COMPOSIÇÃO DO NSGA'!C15) -> Esposo (a) | F9: =IF('1 COMPOSIÇÃO DO NSGA'!C16=0," ",'1 COMPOSIÇÃO DO NSGA'!C16) -> Filho(a) | G9: =IF('1 COMPOSIÇÃO DO NSGA'!C17=0," ",'1 COMPOSIÇÃO DO NSGA'!C17) -> Filho(a) | H9: =IF('1 COMPOSIÇÃO DO NSGA'!C18=0," ",'1 COMPOSIÇÃO DO NSGA'!C18) -> Filho(a) | I9: =IF('1 COMPOSIÇÃO DO NSGA'!#REF!=0," ",'1 COMPOSIÇÃO DO NSGA'!#REF!) ->  | J9: =IF('1 COMPOSIÇÃO DO NSGA'!#REF!=0," ",'1 COMPOSIÇÃO DO NSGA'!#REF!) ->  | K9: =IF('1 COMPOSIÇÃO DO NSGA'!#REF!=0," ",'1 COMPOSIÇÃO DO NSGA'!#REF!) ->  | M9: =IF('1 COMPOSIÇÃO DO NSGA'!C14=0," ",'1 COMPOSIÇÃO DO NSGA'!C14) -> Esposo (a) | N9: =IF('1 COMPOSIÇÃO DO NSGA'!C15=0," ",'1 COMPOSIÇÃO DO NSGA'!C15) -> Esposo (a) | O9: =IF('1 COMPOSIÇÃO DO NSGA'!C16=0," ",'1 COMPOSIÇÃO DO NSGA'!C16) -> Filho(a) | P9: =IF('1 COMPOSIÇÃO DO NSGA'!C17=0," ",'1 COMPOSIÇÃO DO NSGA'!C17) -> Filho(a) | Q9: =IF('1 COMPOSIÇÃO DO NSGA'!C18=0," ",'1 COMPOSIÇÃO DO NSGA'!C18) -> Filho(a) | R9: =IF('1 COMPOSIÇÃO DO NSGA'!#REF!=0," ",'1 COMPOSIÇÃO DO NSGA'!#REF!) ->  | S9: =IF('1 COMPOSIÇÃO DO NSGA'!#REF!=0," ",'1 COMPOSIÇÃO DO NSGA'!#REF!) ->  | T9: =IF('1 COMPOSIÇÃO DO NSGA'!#REF!=0," ",'1 COMPOSIÇÃO DO NSGA'!#REF!) -> 
A10: Trabalho mercantil e autoconsumo | C10: =IF('4 SUBSISTEMAS'!#REF!=0," ",'4 SUBSISTEMAS'!#REF!) ->  | D10: 2 | E10: 1 | F10: 0 | G10: 3 | M10: 1
C11: =IF('4 SUBSISTEMAS'!A14=0," ",'4 SUBSISTEMAS'!A14) -> 
C12: =IF('4 SUBSISTEMAS'!A15=0," ",'4 SUBSISTEMAS'!A15) -> 
C13: =IF('4 SUBSISTEMAS'!A16=0," ",'4 SUBSISTEMAS'!A16) -> 
C14: =IF('4 SUBSISTEMAS'!A17=0," ",'4 SUBSISTEMAS'!A17) -> 
C15: =IF('4 SUBSISTEMAS'!#REF!=0," ",'4 SUBSISTEMAS'!#REF!) -> 
C16: =IF('4 SUBSISTEMAS'!#REF!=0," ",'4 SUBSISTEMAS'!#REF!) -> 
C17: =IF('4 SUBSISTEMAS'!#REF!=0," ",'4 SUBSISTEMAS'!#REF!) -> 
C18: =IF('4 SUBSISTEMAS'!#REF!=0," ",'4 SUBSISTEMAS'!#REF!) -> 
C19: =IF('4 SUBSISTEMAS'!#REF!=0," ",'4 SUBSISTEMAS'!#REF!) -> 
C20: =IF('4 SUBSISTEMAS'!#REF!=0," ",'4 SUBSISTEMAS'!#REF!) -> 
A23: Trabalho doméstico e cuidados | C23: Cuidar das crianças
C24: Cuidar dos idosos
C25: Fazer comida
C26: Limpar a casa
C27: Lavar roupa
A29: Participação social
A31: Pluriatividade
D32: =SUM(D10:D31) -> 2 | E32: =SUM(E10:E31) -> 1 | F32: 0 | G32: 3 | H32: 0 | I32: 0 | J32: 0 | K32: 0 | M32: =SUM(M10:M31) -> 1 | N32: =SUM(N10:N31) -> 0 | O32: 0 | P32: 0 | Q32: 0 | R32: 0 | S32: 0 | T32: 0

Sheet 6 ANÁLISE QUALITATIVA
A1: Análise Qualitativa de Sustentabilidade
C8: NSGA | E8: =PRINCIPAL!E9 -> Família 1 | J8: MUNÍCIPIO | K8: =PRINCIPAL!H13 -> Solânea
C10: COMUNIDADE | E10: =PRINCIPAL!E16 -> Gameleira | J10: ESTADO | K10: =PRINCIPAL!D13 -> PB
J12: POSSUI JOVENS NO NSGA?
B14: ATRIBUTOS DE SUSTENTABILIDADE
B19: PERÍODO DE ANÁLISE | G19: QUALIFICAÇÃO
G20: MUITO BAIXA | H20: BAIXA | I20: MÉDIA | J20: ALTA | K20: MUITO ALTO
B21: 2000 | D21: 2022 | G21: 1 | H21: 2 | I21: 3 | J21: 4 | K21: 5

Sheet AUTONOMIA
D1: AUTONOMIA
A7: Parâmetro | E7: ANO REFERÊNCIA | F7: ANO ATUAL | G7: MUDANÇAS E INOVAÇÕES NO PERÍODO | I7: JUSTIFICATIVAS
E8: ='6 ANÁLISE QUALITATIVA'!B21 -> 2000 | F8: ='6 ANÁLISE QUALITATIVA'!D21 -> 2022
A9: BASE DE RECURSOS AUTOCONTROLADA | B9: Equipamentos/Infraestrutura | E9: 1 | F9: 3
B10: Capacidade de Trabalho | E10: 2 | F10: 5
B11: Forragem/Ração | E11: 2 | F11: 5
B12: Fertilidade do Solo | E12: 2 | F12: 5
B13: Disponibilidade de Água | E13: 2 | F13: 5
B14: Biodiversidade | E14: 2 | F14: 5
B15: Disponibilidade de Terra | E15: 2 | F15: 5
B16: Autoabastecimento alimentar | E16: 2 | F16: 5
A17: RECURSOS PRODUTIVOS MERCANTIS | B17: Terra de terceiros | E17: 2 | F17: 5
B18: Sementes, mudas, mat. propag., crias | E18: 2 | F18: 5
B19: Água | E19: 2 | F19: 5
B20: Fertilizantes | E20: 2 | F20: 5
B21: Forragem/Ração | E21: 2 | F21: 5
B22: Trabalho de terceiros | E22: 2 | F22: 5
D25: ÍNDICE DE AUTONOMIA (0-1)
A26: ='6 ANÁLISE QUALITATIVA'!B21 -> 2000 | G26: ='6 ANÁLISE QUALITATIVA'!D21 -> 2022
A27: =((SUM(E9:E16)+SUM(E17:E22))-14)*1/56 -> 0.2321428571 | G27: =((SUM(F9:F16)+SUM(F17:F22))-14)*1/56 -> 0.9642857143

Sheet RESPONSIVIDADE
C1: RESPONSIVIDADE
A7: Parâmetros | D7: ANO REFERÊNCIA | E7: ANO ATUAL | F7: MUDANÇAS E INOVAÇÕES NO PERÍODO | H7: JUSTIFICATIVAS
D8: ='6 ANÁLISE QUALITATIVA'!B21 -> 2000 | E8: ='6 ANÁLISE QUALITATIVA'!D21 -> 2022
A9: Biodiversidade (Planejada ou associada) | D9: 2 | E9: 5
A10: Diversidade de Mercados Acessados | D10: 1 | E10: 5
A11: Diversidade de Rendas (agrícolas e não-agrícolas) | D11: 1 | E11: 5
A12: Estoques de Insumos | D12: 1 | E12: 5
A13: Estoques Vivos | D13: 3 | E13: 5
A15: ÍNDICE DE RESPONSIVIDADE (0-1)
A16: ='6 ANÁLISE QUALITATIVA'!B21 -> 2000 | G16: ='6 ANÁLISE QUALITATIVA'!D21 -> 2022
A17: =(SUM(D9:D13)-5)*1/20 -> 0.15 | G17: =(SUM(E9:E13)-5)*1/20 -> 1

Sheet INTEGRAÇÃO SOCIAL
C1: INTEGRAÇÃO SOCIAL
A7: Parâmetros | D7: ANO REFERÊNCIA | E7: ANO ATUAL | F7: MUDANÇAS E INOVAÇÕES NO PERÍODO | H7: JUSTIFICATIVAS
D8: ='6 ANÁLISE QUALITATIVA'!B21 -> 2000 | E8: ='6 ANÁLISE QUALITATIVA'!D21 -> 2022
A9: Participação em espaços político-organizativos | D9: 3 | E9: 3
A10: Acesso a políticas públicas | D10: 4 | E10: 5
A11: Participação em redes sociotécnicas de aprendizagem | D11: 1 | E11: 4
A12: Apropriação de riqueza produzida no agroecossistema pelo NSGA | D12: 2 | E12: 3
A13: Participação em espaços de gestão de bens comuns | D13: 3 | E13: 3
A15: ÍNDICE DE INTEGRAÇÃO SOCIAL (0-1)
A16: ='6 ANÁLISE QUALITATIVA'!B21 -> 2000 | G16: ='6 ANÁLISE QUALITATIVA'!D21 -> 2022
A17: =(SUM(D9:D13)-5)*1/20 -> 0.4 | G17: =(SUM(E9:E13)-5)*1/20 -> 0.65

Sheet PROTAGONISMO DAS MULHERES
C1: EQUIDADE DE GÊNERO / PROTAGONISMO DAS MULHERES
A7: Parâmetro | D7: ANO REFERÊNCIA | E7: ANO ATUAL | F7: MUDANÇAS E INOVAÇÕES NO PERÍODO | H7: JUSTIFICATIVAS
D8: ='6 ANÁLISE QUALITATIVA'!B21 -> 2000 | E8: ='6 ANÁLISE QUALITATIVA'!D21 -> 2022
A9: Divisão sexual do trabalho doméstico e de cuidados (adultos) | D9: 2 | E9: 5
A10: Divisão sexual do trabalho doméstico e de cuidados (jovens) | D10: 1 | E10: 2
A11: Participação nas decisões de gestão do agroecossistema | D11: 2 | E11: 5
A12: Participação em espaços sócio-organizativos | D12: 2 | E12: 5
A13: Apropriação da riqueza gerada no agroecossistema | D13: 2 | E13: 5
A14: Acesso a políticas públicas | D14: 2 | E14: 5
A16: ÍNDICE DE EQUIDADE DE GÊNERO / PROTAGONISMO DAS MULHERES (0-1)
A17: ='6 ANÁLISE QUALITATIVA'!B21 -> 2000 | G17: ='6 ANÁLISE QUALITATIVA'!D21 -> 2022
A18: =(D9+D10+D11+D12+D13+D14-6)/24 -> 0.2083333333 | G18: =(E9+E10+E11+E12+E13+E14-6)/24 -> 0.875

Sheet PROTAGONISMO DA JUVENTU
C1: PROTAGONISMO DA JUVENTUDE
A7: Parâmetro | D7: ANO REFERÊNCIA | E7: ANO ATUAL | F7: MUDANÇAS E INOVAÇÕES NO PERÍODO | H7: JUSTIFICATIVAS
D8: ='6 ANÁLISE QUALITATIVA'!B21 -> 2000 | E8: ='6 ANÁLISE QUALITATIVA'!D21 -> 2022
A9: Participação em espaços de aprendizagem | D9: 3 | E9: 2
A10: Participação nas decisões de gestão do agroecossistema | D10: 4 | E10: 2
A11: Participação em espaços político-organizativos | D11: 1 | E11: 2
A12: Acesso à políticas públicas | D12: 5 | E12: 2
A13: Autonomia econômica | D13: 3 | E13: 2
A15: ÍNDICE DE PROTAGONISMO DA JUVENTUDE (0-1)
A16: ='6 ANÁLISE QUALITATIVA'!B21 -> 2000 | G16: ='6 ANÁLISE QUALITATIVA'!D21 -> 2022
A17: =(SUM(D9:D13)-5)*1/20 -> 0.55 | G17: =(SUM(E9:E13)-5)*1/20 -> 0.25

Sheet SÍNTESE
B1: SÍNTESE
A7: Parâmetro | C7: ANO REFERÊNCIA | D7: ANO ATUAL
C8: ='6 ANÁLISE QUALITATIVA'!B21 -> 2000 | D8: ='6 ANÁLISE QUALITATIVA'!D21 -> 2022
A9: AUTONOMIA | C9: =AUTONOMIA!A27 -> 0.2321428571 | D9: =AUTONOMIA!G27 -> 0.9642857143
A10: RESPONSIVIDADE | C10: =RESPONSIVIDADE!A17 -> 0.15 | D10: =RESPONSIVIDADE!G17 -> 1
A11: INTEGRAÇÃO SOCIAL | C11: ='INTEGRAÇÃO SOCIAL'!A17 -> 0.4 | D11: ='INTEGRAÇÃO SOCIAL'!G17 -> 0.65
A12: PROTAGONISMO DAS MULHERES | C12: ='PROTAGONISMO DAS MULHERES'!A18 -> 0.2083333333 | D12: ='PROTAGONISMO DAS MULHERES'!G18 -> 0.875
A13: PROTAGONISMO DA JUVENTUDE | C13: ='PROTAGONISMO DA JUVENTU'!A17 -> 0.55 | D13: ='PROTAGONISMO DA JUVENTU'!G17:I17 -> 0.25 | E13: 0 | F13: 0
A14: ÍNDICE DE SÍNTESE (0-1)
A16: ='6 ANÁLISE QUALITATIVA'!B21 -> 2000 | C16: ='6 ANÁLISE QUALITATIVA'!D21 -> 2022
A17: =(C9+C10+C11+C12+C13)/5 -> 0.3080952381 | C17: =(D9+D10+D11+D12+D13)/5 -> 0.7478571429
